fUST/lending_fUST_20250106
["ID","MTS","AMOUNT","RATE_DAILY","PERIOD"]
[347802892,1736117438426,-530.28,0.00020073,3]
[347802896,1736117438440,-305.94,0.00020073,3]
[347802898,1736117438449,-736.53,0.00020073,3]
[347802899,1736117438460,-553.32,0.00020073,3]
[347802902,1736117438470,-425.7479606,0.00020107,2]
[347802903,1736117438479,-425.7479606,0.0002021,2]
[347802906,1736117438489,-500.0,0.00020236,3]
[347802907,1736117438498,-628.37,0.00020236,3]
[347802910,1736117438508,-455.19743365,0.00020236,3]
[347802912,1736117438520,-44.80256635,0.00020236,3]
[347802914,1736117438530,-4998.39,0.00020236,3]
[347802916,1736117438540,-349.46,0.0002027,3]
[347802918,1736117438549,-305.84900545,0.00020271,3]
[347802920,1736117438559,-500.0,0.00020271,3]
[347802922,1736117438568,-500.0,0.00020271,3]
[347802924,1736117438577,-164.475,0.00020272,2]
[347802926,1736117438586,-500.0,0.00020272,3]
[347802928,1736117438596,-1703.27,0.00020272,3]
[347802930,1736117438606,-500.0,0.00020272,3]
[347802932,1736117438616,-500.0,0.00020272,2]
[347802934,1736117438625,-1430.62,0.00020273,3]
[347802936,1736117438634,-425.7479606,0.00020314,2]
[347802938,1736117438643,-530.28,0.00020347,3]
[347802940,1736117438652,-736.53,0.00020347,3]
[347802942,1736117438661,-553.32,0.00020347,3]
[347802944,1736117438672,-425.7479606,0.00020417,2]
[347802946,1736117438684,-279.23,0.0002051,3]
[347802948,1736117438693,-628.37,0.0002051,3]
[347802950,1736117438702,-500.0,0.0002051,3]
[347802952,1736117438711,-304.08031474,0.0002051,3]
[347803122,1736117440537,-4694.30968526,0.0002051,3]
[347803124,1736117440547,-425.7479606,0.00020521,2]
[347803126,1736117440557,-1703.27,0.00020546,3]
[347803128,1736117440568,-500.0,0.00020546,3]
[347803130,1736117440577,-1430.62,0.00020547,3]
[347803132,1736117440586,-530.28,0.00020621,3]
[347803134,1736117440597,-736.53,0.00020621,3]
[347803136,1736117440607,-553.32,0.00020621,3]
[347803138,1736117440616,-425.7479606,0.00020624,2]
[347803140,1736117440625,-425.7479606,0.00020728,2]
[347803142,1736117440634,-628.37,0.00020784,3]
[347803144,1736117440643,-500.0,0.00020784,3]
[347803146,1736117440652,-4998.39,0.00020784,3]
[347803148,1736117440661,-1703.27,0.0002082,3]
[347803150,1736117440671,-500.0,0.0002082,3]
[347803152,1736117440680,-1430.62,0.00020821,3]
[347803154,1736117440689,-425.7479606,0.00020831,2]
[347803156,1736117440699,-500.0,0.00020893,2]
[347803158,1736117440708,-264.81832778,0.00020893,2]
[347803160,1736117440718,-280.65956471,0.00020893,2]
[347803162,1736117440727,-267.98048325,0.00020893,2]
[347803164,1736117440737,-530.28,0.00020895,3]
[347803166,1736117440746,-736.53,0.00020895,3]
[347803168,1736117440755,-553.32,0.00020895,3]
[347803170,1736117440766,-425.7479606,0.00020934,2]
[347803172,1736117440776,-425.7479606,0.00021038,2]
[347803173,1736117440785,-628.37,0.00021058,3]
[347803175,1736117440795,-500.0,0.00021058,3]
[347803177,1736117440804,-4998.39,0.00021058,3]
[347803179,1736117440813,-1703.27,0.00021094,3]
[347803181,1736117440823,-500.0,0.00021094,3]
[347803183,1736117440831,-1430.62,0.00021095,3]
[347803185,1736117440842,-425.7479606,0.00021141,2]
[347803187,1736117440851,-530.28,0.00021169,3]
[347803189,1736117440860,-736.53,0.00021169,3]
[347803191,1736117440870,-553.32,0.00021169,3]
[347803193,1736117440879,-425.7479606,0.00021245,2]
[347803195,1736117440888,-628.37,0.00021332,3]
[347803197,1736117440897,-500.0,0.00021332,3]
[347803199,1736117440907,-4998.39,0.00021332,3]
[347803201,1736117440916,-425.7479606,0.00021348,2]
[347803203,1736117440926,-1703.27,0.00021368,3]
[347803205,1736117440935,-500.0,0.00021368,3]
[347803207,1736117440944,-1430.62,0.00021369,3]
[347803209,1736117440953,-184.38046151,0.00021388,2]
[347803211,1736117440962,-451.675,0.000214,2]
[347803213,1736117440972,-394.72949263,0.00021442,2]
[347803215,1736117440985,-49411.22162641,0.00021443,2]
[347803217,1736117440994,-7190.77363321,0.00021443,2]
[347803219,1736117441005,-530.28,0.00021443,3]
[347803221,1736117441020,-736.53,0.00021443,3]
[347803223,1736117441031,-553.32,0.00021443,3]
[347803225,1736117441041,-425.7479606,0.00021452,2]
[347803227,1736117441050,-425.7479606,0.00021555,2]
[347803229,1736117441059,-420.0,0.00021562,2]
[347803231,1736117441069,-3166.0,0.000216,4]
[347803233,1736117441078,-628.37,0.00021606,3]
[347803235,1736117441088,-500.0,0.00021606,3]
[347803237,1736117441098,-59.03545997,0.00021606,3]
[347803455,1736117443372,-453.12822559,0.00021606,3]
[347803457,1736117443384,-4486.22631444,0.00021606,3]
[347803459,1736117443394,-1703.27,0.00021642,3]
[347803461,1736117443404,-428.21430672,0.00021642,3]
[347803463,1736117443413,-1430.62,0.00021643,3]
[347803465,1736117443423,-425.7479606,0.00021659,2]
[347803467,1736117443437,-530.28,0.00021717,3]
[347803469,1736117443447,-736.53,0.00021717,3]
[347803471,1736117443457,-553.32,0.00021717,3]
[347803473,1736117443466,-425.7479606,0.00021762,2]
[347803475,1736117443476,-425.7479606,0.00021866,2]
[347803478,1736117443486,-628.37,0.0002188,3]
[347803479,1736117443496,-500.0,0.0002188,3]
[347803481,1736117443505,-4998.39,0.0002188,3]
[347803484,1736117443516,-778.0,0.000219,2]
[347803486,1736117443526,-1703.27,0.00021916,3]
[347803487,1736117443535,-1430.62,0.00021917,3]
[347803488,1736117443544,-200.68,0.00021958,2]
[347803489,1736117443554,-425.7479606,0.00021969,2]
[347803491,1736117443564,-2038.0,0.00021973,2]
[347803493,1736117443573,-535.0,0.00021973,2]
[347803506,1736117443683,-1512.636,0.00021973,2]
[347803508,1736117443694,-394.0,0.00021973,2]
[347803510,1736117443704,-530.28,0.00021991,3]
[347803512,1736117443713,-736.53,0.00021991,3]
[347803514,1736117443723,-553.32,0.00021991,3]
[347803516,1736117443733,-150.0,0.00022,2]
[347803518,1736117443742,-223.0,0.00022,2]
[347803521,1736117443752,-425.7479606,0.00022072,2]
[347803522,1736117443762,-183.03,0.00022093,2]
[347803524,1736117443771,-628.37,0.00022154,3]
[347803526,1736117443780,-500.0,0.00022154,3]
[347803528,1736117443790,-4998.39,0.00022154,3]
[347803530,1736117443800,-425.7479606,0.00022176,2]
[347803532,1736117443809,-1703.27,0.0002219,3]
[347803534,1736117443819,-1430.62,0.00022191,3]
[347803536,1736117443829,-176.198965,0.00022261,2]
[347803538,1736117443838,-530.28,0.00022265,3]
[347803540,1736117443849,-736.53,0.00022265,3]
[347803542,1736117443859,-553.32,0.00022265,3]
[347803544,1736117443868,-425.7479606,0.00022279,2]
[347803546,1736117443878,-425.7479606,0.00022383,2]
[347803548,1736117443888,-200.0,0.00022386,2]
[347803550,1736117443898,-628.37,0.00022428,3]
[347803552,1736117443908,-500.0,0.00022428,3]
[347803554,1736117443917,-4998.39,0.00022428,3]
[347803556,1736117443927,-2500.0,0.00022462,2]
[347803558,1736117443936,-1703.27,0.00022464,3]
[347803560,1736117443946,-151.862226,0.00022465,7]
[347803562,1736117443955,-1430.62,0.00022465,3]
[347803564,1736117443964,-251.815,0.00022472,2]
[347803566,1736117443974,-425.7479606,0.00022486,2]
[347803568,1736117443983,-9807.24765187,0.000225,5]
[347803570,1736117443993,-500.0,0.00022532,8]
[347803572,1736117444002,-252.24454958,0.00022534,3]
[347803574,1736117444012,-500.0,0.00022534,3]
[347803576,1736117444022,-500.0,0.00022534,3]
[347803578,1736117444031,-150.09,0.00022534,2]
[347803580,1736117444040,-500.0,0.00022534,3]
[347803582,1736117444049,-150.09,0.00022534,3]
[347803584,1736117444059,-150.09,0.00022534,3]
[347803586,1736117444069,-500.0,0.00022534,3]
[347803588,1736117444078,-150.09,0.00022534,3]
[347803590,1736117444087,-156.32955311,0.00022534,3]
[347803592,1736117444097,-500.0,0.00022534,3]
[347803593,1736117444106,-500.0,0.00022534,3]
[347803595,1736117444115,-530.28,0.00022539,3]
[347803597,1736117444124,-736.53,0.00022539,3]
[347803599,1736117444134,-553.32,0.00022539,3]
[347803601,1736117444143,-1502.89498788,0.0002258,60]
[347803791,1736117446632,-150.09,0.00022534,3]
[347803792,1736117446641,-7335.83376741,0.0002258,60]
[347803793,1736117446651,-151.0,0.0002258,7]
[347803794,1736117446660,-425.7479606,0.0002259,2]
[347803795,1736117446669,-425.7479606,0.00022693,2]
[347803796,1736117446678,-151.0,0.000227,7]
[347803797,1736117446687,-151.0,0.000227,10]
[347803798,1736117446697,-628.37,0.00022702,3]
[347803800,1736117446706,-500.0,0.00022702,3]
[347803802,1736117446715,-4998.39,0.00022702,3]
[347803804,1736117446724,-1703.27,0.00022738,3]
[347803806,1736117446733,-1430.62,0.00022739,3]
[347803808,1736117446742,-161.677087,0.00022759,2]
[347803810,1736117446752,-425.7479606,0.00022797,2]
[347803812,1736117446761,-1039.89,0.000228,2]
[347803814,1736117446770,-151.0,0.000228,9]
[347803816,1736117446780,-152.75,0.000228,31]
[347803817,1736117446789,-152.75,0.000228,31]
[347803819,1736117446798,-152.75,0.000228,31]
[347803821,1736117446807,-152.75,0.000228,31]
[347803823,1736117446817,-151.0,0.000228,9]
[347803825,1736117446826,-500.0,0.00022808,3]
[347803827,1736117446835,-500.0,0.00022808,3]
[347803828,1736117446844,-368.70937161,0.00022808,3]
[347803830,1736117446857,-361.24874527,0.00022808,3]
[347803832,1736117446866,-150.09,0.00022808,3]
[347803834,1736117446876,-207.26372393,0.00022808,3]
[347803836,1736117446884,-300.09,0.00022808,3]
[347803838,1736117446894,-500.0,0.00022808,3]
[347803840,1736117446903,-500.0,0.00022808,3]
[347803841,1736117446912,-150.09,0.00022808,3]
[347803843,1736117446922,-151.0,0.00022808,2]
[347803845,1736117446931,-530.28,0.00022813,3]
[347803847,1736117446940,-736.53,0.00022813,3]
[347803849,1736117446950,-553.32,0.00022813,3]
[347803851,1736117446958,-184.38046151,0.00022878,2]
[347803852,1736117446968,-3094.65383847,0.00022878,2]
[347803853,1736117446979,-3140.34997209,0.00022878,2]
[347803854,1736117446989,-151.0,0.00022879,7]
[347803855,1736117446999,-151.0,0.0002288,7]
[347803856,1736117447008,-1419.08951334,0.0002288,3]
[347803857,1736117447018,-190.41860723,0.00022892,2]
[347803858,1736117447027,-190.41860723,0.00022892,2]
[347803859,1736117447037,-190.41860723,0.00022892,2]
[347803860,1736117447046,-190.41860723,0.00022892,2]
[347803862,1736117447055,-190.41860723,0.00022892,2]
[347803864,1736117447064,-190.41860723,0.00022892,2]
[347803865,1736117447074,-190.41860723,0.00022892,2]
[347803867,1736117447083,-190.41860723,0.00022892,2]
[347803869,1736117447092,-190.41860723,0.00022892,2]
[347803871,1736117447102,-190.41860723,0.00022892,2]
[347803873,1736117447111,-190.41860723,0.00022892,2]
[347803874,1736117447121,-190.41860723,0.00022892,2]
[347803876,1736117447131,-190.41860723,0.00022892,2]
[347803877,1736117447141,-190.41860723,0.00022892,2]
[347803879,1736117447151,-190.41860723,0.00022892,2]
[347803881,1736117447162,-190.41860723,0.00022892,2]
[347803883,1736117447171,-190.41860723,0.00022892,2]
[347803885,1736117447182,-190.41860723,0.00022892,2]
[347803887,1736117447192,-190.41860723,0.00022892,2]
[347803889,1736117447202,-190.41,0.00022892,2]
[347803891,1736117447212,-285.62791085,0.00022892,2]
[347803893,1736117447223,-285.62791085,0.00022892,2]
[347803895,1736117447233,-43.93261456,0.00022892,2]
[347803898,1736117447245,-241.69529629,0.00022892,2]
[347803900,1736117447255,-178.12296822,0.00022892,2]
[347803935,1736117492059,161.780887,0.00013973,2]
[347803936,1736118425157,-204.63998893,0.00018597,2]
[347803937,1736118425179,-48.13567722,0.00018785,2]
[347803938,1736118429168,-156.50431171,0.00018785,2]
[347803939,1736118429192,-934.12948557,0.000189,2]
[347803940,1736118429214,-887.796,0.00018975,2]
[347803941,1736118429237,-796.75,0.0001945,3]
[347803942,1736118429260,-796.75,0.00019724,3]
[347803943,1736118429280,-500.0,0.00019799,2]
[347803944,1736118429301,-227.02908632,0.00019895,2]
[347803945,1736118429321,-174.11262169,0.00019897,2]
[347803946,1736118429449,-212.8739803,0.000199,2]
[347803947,1736118429472,-300.0,0.00019961,2]
[347803948,1736118429494,-519.91,0.00019962,3]
[347803949,1736118429514,-500.0,0.00019962,3]
[347803950,1736118429536,-500.0,0.00019962,3]
[347803951,1736118429558,-500.0,0.00019962,3]
[347803952,1736118429581,-500.0,0.00019963,3]
[347803953,1736118429604,-1230.94,0.00019963,3]
[347803954,1736118429627,-500.0,0.00019963,3]
[347803955,1736118429649,-500.0,0.00019963,3]
[347803956,1736118429670,-500.0,0.00019995,3]
[347803957,1736118429692,-500.0,0.00019995,3]
[347803958,1736118429712,-500.0,0.00019995,3]
[347803959,1736118429735,-181.82282864,0.00019995,3]
[347803960,1736118444102,-221.89400618,0.00019995,3]
[347803961,1736118494516,162.246469,0.00013973,2]
[347803963,1736118556194,-162.977515,0.00019178,2]
[347804015,1736118632600,-730.36,0.00019963,3]
[347804017,1736118632610,-500.0,0.00019994,3]
[347804019,1736118632622,-500.0,0.00019994,3]
[347804021,1736118632632,-500.0,0.00019994,3]
[347804023,1736118632642,-500.0,0.00019994,3]
[347804025,1736118632652,-300.0,0.00019994,2]
[347804027,1736118632662,-500.0,0.00019994,3]
[347804029,1736118632673,-500.0,0.00019994,3]
[347804031,1736118632682,-314.07,0.00019994,3]
[347804033,1736118632693,-500.0,0.00019994,3]
[347804035,1736118632703,-169.83316518,0.00019995,3]
[347804037,1736118632713,-500.0,0.00019995,3]
[347804039,1736118632723,-532.50728286,0.00019995,3]
[347804041,1736118632733,-500.96220777,0.00019995,3]
[347804044,1736118632743,-500.0,0.00019995,3]
[347804046,1736118632752,-500.0,0.00019995,3]
[347804048,1736118632761,-500.0,0.00019995,3]
[347804050,1736118632771,-500.0,0.00019995,3]
[347804052,1736118632781,-500.0,0.00019995,3]
[347804054,1736118632790,-500.0,0.00019995,3]
[347804057,1736118632800,-500.0,0.00019995,3]
[347804060,1736118632809,-500.0,0.00019995,3]
[347804063,1736118632819,-500.0,0.00019995,3]
[347804066,1736118632828,-500.0,0.00019995,3]
[347804069,1736118632838,-558.22,0.00019995,3]
[347804072,1736118632848,-500.0,0.00019995,3]
[347804075,1736118632858,-500.0,0.00019995,3]
[347804078,1736118632868,-500.0,0.00019995,3]
[347804080,1736118632878,-500.0,0.00019995,3]
[347804083,1736118632888,-500.0,0.00019995,3]
[347804086,1736118632896,-500.0,0.00019995,3]
[347804090,1736118632907,-500.0,0.00019995,3]
[347804092,1736118632917,-500.1828881,0.00019995,3]
[347804095,1736118632927,-649.31,0.00019995,3]
[347804098,1736118632936,-500.0,0.00019995,3]
[347804101,1736118632947,-500.0,0.00019995,3]
[347804105,1736118632958,-500.0,0.00019995,3]
[347804108,1736118632967,-500.0,0.00019995,3]
[347804111,1736118632976,-500.0,0.00019995,3]
[347804114,1736118632985,-500.0,0.00019995,3]
[347804116,1736118632994,-500.0,0.00019995,3]
[347804117,1736118633004,-500.0,0.00019995,3]
[347804120,1736118633014,-500.0,0.00019995,3]
[347804122,1736118633023,-500.0,0.00019995,3]
[347804124,1736118633034,-500.94075034,0.00019995,3]
[347804126,1736118633044,-500.0,0.00019995,3]
[347804128,1736118633053,-500.0,0.00019995,3]
[347804130,1736118633063,-200.72957586,0.00019995,3]
[347804132,1736118633073,-500.0,0.00019995,3]
[347804134,1736118633083,-500.0,0.00019995,3]
[347804136,1736118633093,-500.0,0.00019995,3]
[347804138,1736118633103,-245.77475987,0.00019995,3]
[347804140,1736118633116,-291.32631053,0.00019995,3]
[347804142,1736118633126,-500.0,0.00019995,3]
[347804144,1736118633135,-500.0,0.00019995,3]
[347804146,1736118633145,-536.76,0.00019995,3]
[347804148,1736118633154,-500.0,0.00019995,3]
[347804150,1736118633163,-500.0,0.00019995,3]
[347804152,1736118633173,-500.0,0.00019995,3]
[347804154,1736118633183,-603.89053517,0.00019995,3]
[347804156,1736118633192,-500.0,0.00019995,3]
[347804158,1736118633202,-500.0,0.00019995,3]
[347804160,1736118633212,-500.0,0.00019995,3]
[347804162,1736118633222,-500.0,0.00019995,3]
[347804164,1736118633232,-556.1,0.00019995,3]
[347804166,1736118633241,-500.0,0.00019995,3]
[347804168,1736118633251,-500.0,0.00019995,3]
[347804170,1736118633260,-500.0,0.00019995,3]
[347804172,1736118633270,-500.0,0.00019995,3]
[347804174,1736118633279,-637.23,0.00019995,3]
[347804176,1736118633289,-500.0,0.00019995,3]
[347804178,1736118633299,-500.0,0.00019995,3]
[347804180,1736118633309,-500.0,0.00019995,3]
[347804182,1736118633319,-500.0,0.00019995,3]
[347804184,1736118633328,-500.0,0.00019995,3]
[347804186,1736118633338,-500.0,0.00019995,3]
[347804188,1736118633350,-500.0,0.00019995,3]
[347804190,1736118633360,-500.0,0.00019995,3]
[347804192,1736118633370,-500.0,0.00019995,3]
[347804194,1736118633379,-7.68595569,0.00019995,3]
[347804196,1736118633392,-492.31404431,0.00019995,3]
[347804199,1736118633402,-500.0,0.00019995,3]
[347804201,1736118633412,-500.0,0.00019995,3]
[347804203,1736118633421,-500.0,0.00019995,3]
[347804204,1736118633431,-500.0,0.00019995,3]
[347804206,1736118633440,-302.40290569,0.00019995,3]
[347804209,1736118633452,-197.59709431,0.00019995,3]
[347804211,1736118633463,-500.0,0.00019995,3]
[347804213,1736118633472,-500.0,0.00019995,3]
[347804215,1736118633482,-500.0,0.00019995,3]
[347804217,1736118633491,-500.0,0.00019995,3]
[347804219,1736118633501,-500.0,0.00019995,3]
[347804221,1736118633511,-500.0,0.00019995,3]
[347804222,1736118633521,-500.0,0.00019995,3]
[347804223,1736118633531,-500.0,0.00019995,3]
[347804224,1736118633540,-500.0,0.00019995,3]
[347804225,1736118633550,-500.0,0.00019995,3]
[347804227,1736118633560,-500.0,0.00019995,3]
[347804228,1736118633569,-500.0,0.00019995,3]
[347804230,1736118633578,-500.0,0.00019995,3]
[347804231,1736118633588,-117.53032011,0.00019995,3]
[347804480,1736118638428,-382.46967989,0.00019995,3]
[347804482,1736118638438,-414.57615986,0.00019995,3]
[347804484,1736118638448,-3.8433542,0.00019995,3]
[347804486,1736118638461,-401.33490536,0.00019995,3]
[347804488,1736118638473,-94.82174044,0.00019995,3]
[347804491,1736118638483,-500.0,0.00019995,3]
[347804492,1736118638492,-500.0,0.00019995,3]
[347804494,1736118638502,-500.0,0.00019995,3]
[347804496,1736118638511,-500.0,0.00019995,3]
[347804498,1736118638521,-500.0,0.00019995,3]
[347804500,1736118638530,-500.0,0.00019995,3]
[347804502,1736118638539,-232.1051279,0.00019995,3]
[347804504,1736118638551,-1180.0,0.00019995,3]
[347804506,1736118638563,-1007.1,0.00019995,3]
[347804577,1736118640568,-546.3648721,0.00019995,3]
[347804580,1736118640580,-500.0,0.00019995,3]
[347804582,1736118640589,-323.6351279,0.00019995,3]
[347804584,1736118640602,-176.3648721,0.00019995,3]
[347804586,1736118640611,-500.0,0.00019995,3]
[347804588,1736118640621,-29.61964726,0.00019995,3]
[347804590,1736118640632,-470.38035274,0.00019995,3]
[347804592,1736118640642,-640.14424409,0.00019995,3]
[347804594,1736118640651,-500.0,0.00019995,3]
[347804596,1736118640661,-500.0,0.00019995,3]
[347804599,1736118640670,-500.0,0.00019995,3]
[347804601,1736118640681,-211.36945606,0.00019995,3]
[347804603,1736118640693,-118.70096808,0.00019995,3]
[347804605,1736118640702,-500.0,0.00019995,3]
[347804607,1736118640712,-621.67,0.00019995,3]
[347804609,1736118640722,-500.0,0.00019995,3]
[347804611,1736118640731,-375.68748813,0.00019995,3]
[347804613,1736118640744,-124.31251187,0.00019995,3]
[347804615,1736118640754,-500.0,0.00019995,3]
[347804617,1736118640763,-500.0,0.00019995,3]
[347804619,1736118640773,-500.0,0.00019995,3]
[347804621,1736118640783,-500.0,0.00019995,3]
[347804623,1736118640792,-500.0,0.00019995,3]
[347804625,1736118640801,-500.0,0.00019995,3]
[347804627,1736118640811,-500.0,0.00019995,3]
[347804629,1736118640820,-500.0,0.00019995,3]
[347804631,1736118640830,-500.0,0.00019995,3]
[347804633,1736118640839,-500.0,0.00019995,3]
[347804635,1736118640849,-500.0,0.00019995,3]
[347804637,1736118640859,-500.0,0.00019995,3]
[347804639,1736118640869,-500.0,0.00019995,3]
[347804641,1736118640881,-500.0,0.00019995,3]
[347804643,1736118640890,-500.0,0.00019995,3]
[347804645,1736118640900,-515.39575591,0.00019995,3]
[347804647,1736118640909,-500.0,0.00019995,3]
[347804649,1736118640921,-500.0,0.00019995,3]
[347804651,1736118640930,-500.0,0.00019995,3]
[347804653,1736118640940,-500.0,0.00019995,3]
[347804655,1736118640950,-500.0,0.00019995,3]
[347804657,1736118640959,-500.0,0.00019995,3]
[347804659,1736118640969,-500.0,0.00019995,3]
[347804661,1736118640978,-500.0,0.00019995,3]
[347804663,1736118640987,-645.53,0.00019995,3]
[347804665,1736118640997,-522.14,0.00019995,3]
[347804667,1736118641006,-500.0,0.00019995,3]
[347804669,1736118641016,-500.0,0.00019995,3]
[347804671,1736118641026,-500.0,0.00019995,3]
[347804673,1736118641036,-500.0,0.00019995,3]
[347804675,1736118641045,-500.0,0.00019995,3]
[347804677,1736118641056,-500.0,0.00019995,3]
[347804679,1736118641065,-500.0,0.00019995,3]
[347804681,1736118641077,-500.0,0.00019995,3]
[347804683,1736118641086,-500.0,0.00019995,3]
[347804685,1736118641096,-500.0,0.00019995,3]
[347804687,1736118641106,-500.0,0.00019995,3]
[347804689,1736118641115,-500.0,0.00019995,3]
[347804691,1736118641125,-500.0,0.00019995,3]
[347804693,1736118641134,-500.0,0.00019995,3]
[347804695,1736118641144,-500.0,0.00019995,3]
[347804697,1736118641155,-165.671,0.00019996,2]
[347804699,1736118641165,-500.0,0.00019996,3]
[347804702,1736118641176,-500.0,0.00019996,3]
[347804703,1736118641186,-500.0,0.00019996,3]
[347804706,1736118641196,-500.0,0.00019996,3]
[347804708,1736118641207,-500.0,0.00019996,3]
[347804709,1736118641216,-500.0,0.00019997,3]
[347804711,1736118641226,-500.0,0.00019997,3]
[347804714,1736118641235,-500.0,0.00019997,3]
[347804716,1736118641245,-500.0,0.00019997,3]
[347804718,1736118641255,-500.0,0.00019997,3]
[347804720,1736118641264,-500.0,0.00019997,3]
[347804722,1736118641274,-500.0,0.00019997,3]
[347804724,1736118641283,-500.0,0.00019997,3]
[347804726,1736118641293,-245.66927522,0.00019997,3]
[347804727,1736118641302,-470.97040225,0.00019997,3]
[347804729,1736118641311,-500.0,0.00019997,3]
[347804741,1736118641415,-500.0,0.00019997,3]
[347804744,1736118641427,-500.0,0.00019997,3]
[347804746,1736118641437,-500.0,0.00019997,3]
[347804748,1736118641446,-500.0,0.00019997,3]
[347804750,1736118641456,-500.0,0.00019997,3]
[347804752,1736118641465,-500.0,0.00019997,3]
[347804754,1736118641474,-2724.0,0.0002,2]
[347804756,1736118641484,-232.53,0.00020235,3]
[347804758,1736118641493,-1230.94,0.00020237,3]
[347804760,1736118641502,-361.52,0.00020237,3]
[347804762,1736118641511,-730.36,0.00020237,3]
[347804763,1736118641521,-500.0,0.00020268,3]
[347804766,1736118641530,-450.61,0.00020268,3]
[347804768,1736118641539,-500.0,0.00020268,3]
[347804770,1736118641549,-216.12,0.00020269,3]
[347804772,1736118641558,-151.94962923,0.00020269,3]
[347804774,1736118641567,-500.0,0.00020269,3]
[347804776,1736118641578,-500.0,0.00020269,3]
[347804778,1736118641587,-571.67,0.00020269,3]
[347804780,1736118641596,-2965.57,0.00020269,3]
[347804782,1736118641606,-448.74,0.00020269,3]
[347804784,1736118641615,-246.35,0.00020269,3]
[347804786,1736118641624,-500.0,0.00020269,3]
[347804788,1736118641634,-441.18,0.00020269,3]
[347804790,1736118641643,-410.03,0.00020269,3]
[347804792,1736118641653,-500.0,0.00020269,3]
[347804794,1736118641662,-500.0,0.00020269,3]
[347804796,1736118641671,-460.74,0.00020269,3]
[347804798,1736118641681,-151.0,0.00020269,2]
[347804800,1736118641690,-151.0,0.00020269,2]
[347804802,1736118641699,-541.41,0.00020269,3]
[347804804,1736118641709,-500.0,0.00020269,3]
[347804806,1736118641718,-230.81,0.00020269,3]
[347804808,1736118641727,-248.54,0.00020269,3]
[347804810,1736118641737,-238.105561,0.00020269,2]
[347804812,1736118641746,-394.33,0.00020269,3]
[347804814,1736118641756,-238.105561,0.00020269,2]
[347804816,1736118641765,-500.0,0.0002027,3]
[347804818,1736118641775,-1230.94,0.00020511,3]
[347804820,1736118641785,-730.36,0.00020511,3]
[347804822,1736118641795,-500.0,0.00020542,3]
[347804824,1736118641804,-500.0,0.00020542,3]
[347804826,1736118641813,-500.0,0.00020543,3]
[347804828,1736118641823,-500.0,0.00020543,3]
[347804830,1736118641834,-2965.57,0.00020543,3]
[347804832,1736118641843,-500.0,0.00020543,3]
[347804834,1736118641852,-220.75,0.00020543,3]
[347804836,1736118641861,-221.59,0.00020543,3]
[347804838,1736118641874,-500.0,0.00020543,3]
[347804840,1736118641883,-500.0,0.00020544,3]
[347804842,1736118641893,-411.78504176,0.00020544,3]
[347804844,1736118641902,-500.0,0.00020544,3]
[347804846,1736118641911,-500.0,0.00020544,3]
[347804848,1736118641921,-151.0,0.00020544,2]
[347804850,1736118641930,-500.0,0.00020544,3]
[347804852,1736118641939,-500.0,0.00020544,3]